fUST/lending_fUST_20250827
["ID","MTS","AMOUNT","RATE_DAILY","PERIOD"]
[381609997,1756295518830,-480.0,0.00024657,2]
[381609998,1756295518840,-480.0,0.00024657,2]
[381609999,1756295518850,-706.22,0.00024657,2]
[381610000,1756295518862,-480.0,0.00024657,2]
[381610001,1756295518871,-480.0,0.00024657,2]
[381610002,1756295518880,-550.82,0.00024657,2]
[381610003,1756295518889,-926.56,0.00024657,2]
[381610004,1756295518898,-924.56,0.00024657,2]
[381610005,1756295518907,-480.0,0.00024657,2]
[381610006,1756295518916,-604.08280507,0.00024657,2]
[381610007,1756295518926,-625.16,0.00024657,2]
[381610008,1756295518936,-480.0,0.00024657,2]
[381610009,1756295518945,-480.0,0.00024657,2]
[381610010,1756295518955,-480.0,0.00024657,2]
[381610011,1756295518964,-613.93,0.00024657,2]
[381610012,1756295518973,-343.86870072,0.00024657,2]
[381610013,1756295518983,-480.0,0.00024657,2]
[381610014,1756295518992,-732.55,0.00024657,2]
[381610015,1756295519001,-480.0,0.00024657,2]
[381610016,1756295519011,-480.0,0.00024657,2]
[381610017,1756295519020,-480.0,0.00024657,2]
[381610018,1756295519029,-480.0,0.00024657,2]
[381610019,1756295519039,-502.03,0.00024657,2]
[381610020,1756295519049,-513.59,0.00024657,2]
[381610021,1756295519059,-9670.89,0.00024657,2]
[381610022,1756295519068,-524.29,0.00024657,2]
[381610023,1756295519078,-480.0,0.00024657,2]
[381610024,1756295519087,-1383.3,0.00024657,2]
[381610025,1756295519097,-655.08,0.00024657,2]
[381610026,1756295519106,-480.0,0.00024657,2]
[381610027,1756295519116,-480.0,0.00024657,2]
[381610028,1756295519125,-476.64651865,0.00024657,2]
[381610029,1756295519134,-480.0,0.00024657,2]
[381610030,1756295519144,-665.82,0.00024657,2]
[381610031,1756295519156,-480.0,0.00024657,2]
[381610032,1756295519176,-480.0,0.00024657,2]
[381610033,1756295519192,-480.0,0.00024657,2]
[381610034,1756295519211,-480.0,0.00024657,2]
[381610035,1756295519231,-424.13097611,0.00024657,2]
[381610036,1756295519249,-737.63,0.00024657,2]
[381610037,1756295519268,-480.0,0.00024657,2]
[381610038,1756295519284,-1275.55,0.00024657,2]
[381610039,1756295519300,-941.67,0.00024657,2]
[381610040,1756295519318,-480.0,0.00024657,2]
[381610041,1756295519338,-527.84,0.00024657,2]
[381610042,1756295519351,-480.0,0.00024657,2]
[381610043,1756295519369,-1377.54,0.00024657,2]
[381610044,1756295519384,-480.0,0.00024657,2]
[381610045,1756295519399,-544.18,0.00024657,2]
[381610046,1756295519414,-2005.67,0.00024657,2]
[381610047,1756295519429,-605.81,0.00024657,2]
[381610048,1756295519444,-480.0,0.00024657,2]
[381610049,1756295519460,-486.23,0.00024657,2]
[381610050,1756295519476,-173.85418794,0.00024657,2]
[381610051,1756295519490,-480.0,0.00024657,2]
[381610052,1756295519505,-572.5,0.00024657,2]
[381610053,1756295519518,-1511.66,0.00024657,2]
[381610054,1756295519532,-1734.3,0.00024657,2]
[381610055,1756295519547,-3755.94,0.00024657,2]
[381610056,1756295519562,-831.34,0.00024657,2]
[381610057,1756295519577,-480.0,0.00024657,2]
[381610058,1756295519592,-480.0,0.00024657,2]
[381610059,1756295519608,-707.25,0.00024657,2]
[381610060,1756295519623,-2885.3,0.00024657,2]
[381610061,1756295519638,-480.0,0.00024657,2]
[381610062,1756295519652,-667.09,0.00024657,2]
[381610063,1756295519667,-480.0,0.00024657,2]
[381610064,1756295519682,-1275.32,0.00024657,2]
[381610065,1756295519696,-480.0,0.00024657,2]
[381610066,1756295519711,-562.26,0.00024657,2]
[381610067,1756295519726,-489.14,0.00024657,2]
[381610068,1756295519742,-3844.16,0.00024657,2]
[381610069,1756295519756,-480.0,0.00024657,2]
[381610070,1756295519770,-1682.7,0.00024657,2]
[381610071,1756295519785,-1992.53,0.00024657,2]
[381610072,1756295519799,-480.0,0.00024657,2]
[381610073,1756295519814,-1281.38,0.00024657,2]
[381610074,1756295519828,-589.84727449,0.00024657,2]
[381610075,1756295519843,-480.0,0.00024657,2]
[381610076,1756295519863,-480.0,0.00024657,2]
[381610077,1756295519880,-833.25,0.00024657,2]
[381610078,1756295519895,-480.0,0.00024657,2]
[381610079,1756295519910,-480.0,0.00024657,2]
[381610080,1756295519924,-480.0,0.00024657,2]
[381610081,1756295519940,-480.0,0.00024657,2]
[381610082,1756295519955,-480.0,0.00024657,2]
[381610083,1756295519971,-590.28788392,0.00024657,2]
[381610084,1756295519985,-480.0,0.00024657,2]
[381610085,1756295520000,-480.0,0.00024657,2]
[381610086,1756295520016,-480.0,0.00024657,2]
[381610087,1756295520031,-480.0,0.00024657,2]
[381610088,1756295520046,-480.0,0.00024657,2]
[381610089,1756295520062,-824.64,0.00024657,2]
[381610090,1756295520077,-1267.55,0.00024657,2]
[381610091,1756295520091,-1138.38,0.00024657,2]
[381610092,1756295520105,-934.3,0.00024657,2]
[381610093,1756295520120,-480.0,0.00024657,2]
[381610094,1756295520134,-480.0,0.00024657,2]
[381610095,1756295520149,-495.31,0.00024657,2]
[381610096,1756295520164,-480.0,0.00024657,2]
[381610097,1756295520179,-776.73,0.00024657,2]
[381610098,1756295520194,-480.0,0.00024657,2]
[381610099,1756295520210,-480.0,0.00024657,2]
[381610100,1756295520225,-480.0,0.00024657,2]
[381610101,1756295520240,-567.16114633,0.00024657,2]
[381610102,1756295520255,-557.28,0.00024657,2]
[381610103,1756295520270,-535.56,0.00024657,2]
[381610104,1756295520285,-480.0,0.00024657,2]
[381610105,1756295520300,-200.04,0.00024657,2]
[381610106,1756295520313,-639.28,0.00024657,2]
[381610107,1756295520327,-480.0,0.00024657,2]
[381610108,1756295520343,-480.0,0.00024657,2]
[381610109,1756295520358,-480.0,0.00024657,2]
[381610110,1756295520372,-1717.2,0.00024657,2]
[381610111,1756295520386,-480.0,0.00024657,2]
[381610112,1756295520400,-480.0,0.00024657,2]
[381610113,1756295520414,-2626.17,0.00024657,2]
[381610114,1756295520428,-932.54,0.00024657,2]
[381610115,1756295520442,-484.63,0.00024657,2]
[381610116,1756295520457,-717.77,0.00024657,2]
[381610117,1756295520472,-1227.94,0.00024657,2]
[381610118,1756295520487,-607.71,0.00024657,2]
[381610119,1756295520502,-480.0,0.00024657,2]
[381610120,1756295520517,-5360.08,0.00024657,2]
[381610121,1756295520531,-636.41,0.00024657,2]
[381610122,1756295520545,-480.0,0.00024657,2]
[381610123,1756295520559,-7837.73,0.00024657,2]
[381610124,1756295520573,-525.03,0.00024657,2]
[381610125,1756295520759,-784.27,0.00024657,2]
[381610126,1756295520782,-974.32,0.00024657,2]
[381610127,1756295520792,-480.0,0.00024657,2]
[381610128,1756295520801,-480.0,0.00024657,2]
[381610129,1756295520811,-480.0,0.00024657,2]
[381610130,1756295520820,-2604.37,0.00024657,2]
[381610131,1756295520830,-480.0,0.00024657,2]
[381610132,1756295520839,-480.0,0.00024657,2]
[381610133,1756295520849,-480.0,0.00024657,2]
[381610134,1756295520862,-486.44,0.00024657,2]
[381610135,1756295520871,-1424.05,0.00024657,2]
[381610136,1756295520879,-480.0,0.00024657,2]
[381610137,1756295520889,-480.0,0.00024657,2]
[381610138,1756295520899,-480.0,0.00024657,2]
[381610139,1756295520908,-850.03,0.00024657,2]
[381610140,1756295520917,-480.0,0.00024657,2]
[381610141,1756295520926,-480.0,0.00024657,2]
[381610142,1756295520937,-480.0,0.00024657,2]
[381610143,1756295520947,-480.0,0.00024657,2]
[381610144,1756295520957,-512.47,0.00024657,2]
[381610145,1756295520967,-2434.53,0.00024657,2]
[381610146,1756295520977,-1080.79,0.00024657,2]
[381610147,1756295520987,-753.46,0.00024657,2]
[381610148,1756295520996,-527.3,0.00024657,2]
[381610149,1756295521005,-556.33341469,0.00024657,2]
[381610150,1756295521015,-1150.08,0.00024657,2]
[381610151,1756295521025,-480.0,0.00024657,2]
[381610152,1756295521035,-480.0,0.00024657,2]
[381610153,1756295521044,-480.0,0.00024657,2]
[381610154,1756295521054,-716.6,0.00024657,2]
[381610155,1756295521064,-480.0,0.00024657,2]
[381610156,1756295521074,-480.0,0.00024657,2]
[381610157,1756295521083,-480.0,0.00024657,2]
[381610158,1756295521093,-480.0,0.00024657,2]
[381610159,1756295521102,-799.46,0.00024657,2]
[381610160,1756295521111,-528.16,0.00024657,2]
[381610161,1756295521121,-5059.84,0.00024657,2]
[381610162,1756295521130,-480.0,0.00024657,2]
[381610163,1756295521140,-518.25,0.00024657,2]
[381610164,1756295521150,-582.84,0.00024657,2]
[381610165,1756295521160,-556.45,0.00024657,2]
[381610166,1756295521171,-1272.66,0.00024657,2]
[381610167,1756295521181,-480.0,0.00024657,2]
[381610168,1756295521190,-480.0,0.00024657,2]
[381610169,1756295521200,-684.68,0.00024657,2]
[381610170,1756295521210,-150.0,0.00024658,2]
[381610171,1756295521220,-380.0,0.00024658,2]
[381610172,1756295521229,-226.23595338,0.00024658,2]
[381610173,1756295521240,-500.0,0.00024658,2]
[381610174,1756295521249,-5888.0,0.00024687,2]
[381610175,1756295521259,-500.0,0.000247,9]
[381610176,1756295521269,-4000.0,0.00024708,2]
[381610177,1756295521278,-951.0,0.00024712,2]
[381610178,1756295521288,-2064.20705671,0.00024712,2]
[381610179,1756295521298,-4195.6826826,0.00024774,2]
[381610180,1756295521308,-12820.26,0.000248,2]
[381610181,1756295521317,-621837.866968,0.000249,2]
[381610182,1756295521327,-973.0,0.0002491,2]
[381610183,1756295521336,-3000.0,0.00024912,2]
[381610184,1756295521346,-650.0,0.00024912,2]
[381610185,1756295521355,-728.82,0.00024931,2]
[381610186,1756295521364,-1786.79,0.00024931,2]
[381610187,1756295521374,-480.0,0.00024931,2]
[381610188,1756295521383,-567.43,0.00024931,2]
[381610189,1756295521392,-2132.63,0.00024931,2]
[381610190,1756295521401,-480.0,0.00024931,2]
[381610191,1756295521411,-599.6,0.00024931,2]
[381610192,1756295521420,-480.0,0.00024931,2]
[381610193,1756295521429,-480.0,0.00024931,2]
[381610194,1756295521439,-480.0,0.00024931,2]
[381610195,1756295521448,-555.01,0.00024931,2]
[381610196,1756295521458,-480.0,0.00024931,2]
[381610197,1756295521470,-480.0,0.00024931,2]
[381610198,1756295521479,-480.0,0.00024931,2]
[381610199,1756295521489,-608.26,0.00024931,2]
[381610200,1756295521499,-480.0,0.00024931,2]
[381610201,1756295521508,-788.63,0.00024931,2]
[381610202,1756295521518,-733.12,0.00024931,2]
[381610203,1756295521528,-491.85,0.00024931,2]
[381610204,1756295521538,-523.6,0.00024931,2]
[381610205,1756295521548,-4246.52,0.00024931,2]
[381610206,1756295521558,-598.52,0.00024931,2]
[381610207,1756295521567,-972.86,0.00024931,2]
[381610208,1756295521576,-568.62,0.00024931,2]
[381610209,1756295521585,-480.0,0.00024931,2]
[381610210,1756295521595,-480.0,0.00024931,2]
[381610211,1756295521604,-410.59038603,0.00024931,2]
[381610212,1756295521614,-573.08,0.00024931,2]
[381610213,1756295521623,-543.52,0.00024931,2]
[381610214,1756295521632,-506.41,0.00024931,2]
[381610215,1756295521642,-556.45,0.00024931,2]
[381610216,1756295521651,-480.0,0.00024931,2]
[381610217,1756295521661,-480.0,0.00024931,2]
[381610218,1756295521671,-480.0,0.00024931,2]
[381610219,1756295521682,-480.0,0.00024931,2]
[381610220,1756295521692,-480.0,0.00024931,2]
[381610221,1756295521702,-743.34,0.00024931,2]
[381610222,1756295521711,-614.77,0.00024931,2]
[381610223,1756295521724,-480.0,0.00024931,2]
[381610224,1756295521734,-480.0,0.00024931,2]
[381610225,1756295521743,-480.0,0.00024931,2]
[381610226,1756295521752,-1174.5,0.00024931,2]
[381610227,1756295521762,-480.0,0.00024931,2]
[381610228,1756295521771,-480.0,0.00024931,2]
[381610229,1756295521780,-207.6527964,0.00024931,2]
[381610230,1756295521790,-480.0,0.00024931,2]
[381610231,1756295521799,-480.0,0.00024931,2]
[381610232,1756295521808,-480.0,0.00024931,2]
[381610233,1756295521817,-824.65,0.00024931,2]
[381610234,1756295521827,-480.0,0.00024931,2]
[381610235,1756295521836,-897.27,0.00024931,2]
[381610236,1756295521845,-771.07,0.00024931,2]
[381610237,1756295521856,-480.0,0.00024931,2]
[381610238,1756295521865,-480.0,0.00024931,2]
[381610239,1756295521874,-504.69,0.00024931,2]
[381610240,1756295521884,-1094.25,0.00024931,2]
[381610241,1756295521893,-480.0,0.00024931,2]
[381610242,1756295521903,-480.0,0.00024931,2]
[381610243,1756295521912,-480.0,0.00024931,2]
[381610244,1756295521922,-1176.51,0.00024931,2]
[381610245,1756295521935,-833.03,0.00024931,2]
[381610246,1756295521945,-480.0,0.00024931,2]
[381610247,1756295521954,-483.29,0.00024931,2]
[381610248,1756295521963,-480.0,0.00024931,2]
[381610249,1756295521974,-650.46,0.00024931,2]
[381610250,1756295521983,-536.02,0.00024931,2]
[381610251,1756295521993,-2316.32,0.00024931,2]
[381610252,1756295522001,-480.0,0.00024931,2]
[381610253,1756295522011,-633.07,0.00024931,2]
[381610254,1756295522021,-480.0,0.00024931,2]
[381610255,1756295522030,-480.0,0.00024931,2]
[381610256,1756295522040,-480.0,0.00024931,2]
[381610257,1756295522050,-586.70604451,0.00024931,2]
[381610258,1756295522060,-692.43,0.00024931,2]
[381610259,1756295522069,-480.0,0.00024931,2]
[381610260,1756295522078,-617.59,0.00024931,2]
[381610261,1756295522087,-518.17,0.00024931,2]
[381610262,1756295522097,-604.0,0.00024931,2]
[381610263,1756295522106,-500.09,0.00024931,2]
[381610264,1756295522116,-480.0,0.00024931,2]
[381610265,1756295522125,-480.0,0.00024931,2]
[381610266,1756295522135,-480.0,0.00024931,2]
[381610267,1756295522145,-480.0,0.00024931,2]
[381610268,1756295522154,-603.45,0.00024931,2]
[381610269,1756295522163,-480.0,0.00024931,2]
[381610270,1756295522173,-480.0,0.00024931,2]
[381610271,1756295522183,-525.14,0.00024931,2]
[381610272,1756295522192,-480.0,0.00024931,2]
[381610273,1756295522203,-546.45,0.00024931,2]
[381610274,1756295522213,-480.0,0.00024931,2]
[381610275,1756295522225,-495.46,0.00024931,2]
[381610276,1756295522233,-494.23,0.00024931,2]
[381610277,1756295522243,-480.0,0.00024931,2]
[381610278,1756295522252,-752.07,0.00024931,2]
[381610279,1756295522262,-522.4,0.00024931,2]
[381610280,1756295522271,-480.0,0.00024931,2]
[381610281,1756295522281,-480.0,0.00024931,2]
[381610282,1756295522290,-1143.26,0.00024931,2]
[381610283,1756295522300,-698.99,0.00024931,2]
[381610284,1756295522310,-606.55,0.00024931,2]
[381610285,1756295522320,-755.57,0.00024931,2]
[381610286,1756295522330,-740.17,0.00024931,2]
[381610287,1756295522339,-480.0,0.00024931,2]
[381610288,1756295522350,-839.06,0.00024931,2]
[381610289,1756295522359,-558.04,0.00024931,2]
[381610290,1756295522369,-480.0,0.00024931,2]
[381610291,1756295522379,-480.0,0.00024931,2]
[381610292,1756295522389,-576.43,0.00024931,2]
[381610293,1756295522398,-480.0,0.00024931,2]
[381610294,1756295522408,-527.26,0.00024931,2]
[381610295,1756295522418,-564.31,0.00024931,2]
[381610296,1756295522427,-525.48,0.00024931,2]
[381610297,1756295522436,-480.0,0.00024931,2]
[381610298,1756295522446,-480.0,0.00024931,2]
[381610299,1756295522455,-706.22,0.00024931,2]
[381610300,1756295522464,-480.0,0.00024931,2]
[381610301,1756295522474,-480.0,0.00024931,2]
[381610302,1756295522483,-550.82,0.00024931,2]
[381610303,1756295522493,-926.56,0.00024931,2]
[381610304,1756295522502,-924.56,0.00024931,2]
[381610305,1756295522511,-480.0,0.00024931,2]
[381610306,1756295522521,-625.16,0.00024931,2]
[381610307,1756295522531,-480.0,0.00024931,2]
[381610308,1756295522540,-480.0,0.00024931,2]
[381610309,1756295522551,-480.0,0.00024931,2]
[381610310,1756295522561,-613.93,0.00024931,2]
[381610311,1756295522572,-480.0,0.00024931,2]
[381610312,1756295522582,-732.55,0.00024931,2]
[381610313,1756295522592,-480.0,0.00024931,2]
[381610314,1756295522603,-480.0,0.00024931,2]
[381610315,1756295522613,-480.0,0.00024931,2]
[381610316,1756295522623,-480.0,0.00024931,2]
[381610317,1756295522633,-502.03,0.00024931,2]
[381610318,1756295522642,-513.59,0.00024931,2]
[381610319,1756295522652,-9670.89,0.00024931,2]
[381610320,1756295522662,-524.29,0.00024931,2]
[381610321,1756295522671,-480.0,0.00024931,2]
[381610322,1756295522681,-1383.3,0.00024931,2]
[381610323,1756295522691,-655.08,0.00024931,2]
[381610324,1756295522703,-480.0,0.00024931,2]
[381610325,1756295522712,-480.0,0.00024931,2]
[381610326,1756295522727,-480.0,0.00024931,2]
[381610327,1756295522736,-665.82,0.00024931,2]
[381610328,1756295522746,-480.0,0.00024931,2]
[381610329,1756295522757,-480.0,0.00024931,2]
[381610330,1756295522768,-480.0,0.00024931,2]
[381610331,1756295522778,-480.0,0.00024931,2]
[381610332,1756295522788,-737.63,0.00024931,2]
[381610333,1756295522798,-480.0,0.00024931,2]
[381610334,1756295522808,-1275.55,0.00024931,2]
[381610335,1756295522818,-941.67,0.00024931,2]
[381610336,1756295522828,-480.0,0.00024931,2]
[381610337,1756295522838,-527.84,0.00024931,2]
[381610338,1756295522850,-480.0,0.00024931,2]
[381610339,1756295522867,-1377.54,0.00024931,2]
[381610340,1756295522877,-480.0,0.00024931,2]
[381610341,1756295522886,-544.18,0.00024931,2]
[381610342,1756295522897,-2005.67,0.00024931,2]
[381610343,1756295522907,-605.81,0.00024931,2]
[381610344,1756295522917,-480.0,0.00024931,2]
[381610345,1756295522927,-486.23,0.00024931,2]
[381610346,1756295522938,-480.0,0.00024931,2]
[381610347,1756295522948,-572.5,0.00024931,2]
[381610348,1756295522958,-1511.66,0.00024931,2]
[381610349,1756295522970,-1734.3,0.00024931,2]
[381610350,1756295522980,-3755.94,0.00024931,2]
[381610351,1756295522991,-831.34,0.00024931,2]
[381610352,1756295523001,-480.0,0.00024931,2]
[381610353,1756295523013,-480.0,0.00024931,2]
[381610354,1756295523024,-707.25,0.00024931,2]
[381610355,1756295523035,-2885.3,0.00024931,2]
[381610356,1756295523047,-438.34422084,0.00024931,2]
[381610357,1756295523057,-667.09,0.00024931,2]
[381610358,1756295523067,-480.0,0.00024931,2]
[381610359,1756295523078,-1275.32,0.00024931,2]
[381610360,1756295523090,-480.0,0.00024931,2]
[381610361,1756295523101,-562.26,0.00024931,2]
[381610362,1756295523112,-489.14,0.00024931,2]
[381610363,1756295523123,-3844.16,0.00024931,2]
[381610364,1756295523134,-480.0,0.00024931,2]
[381610365,1756295523147,-1682.7,0.00024931,2]
[381610366,1756295523158,-1992.53,0.00024931,2]
[381610367,1756295523168,-480.0,0.00024931,2]
[381610368,1756295523179,-1281.38,0.00024931,2]
[381610369,1756295523189,-480.0,0.00024931,2]
[381610370,1756295523199,-480.0,0.00024931,2]
[381610371,1756295523209,-833.25,0.00024931,2]
[381610372,1756295523221,-480.0,0.00024931,2]
[381610373,1756295523231,-480.0,0.00024931,2]
[381610374,1756295523242,-480.0,0.00024931,2]
[381610375,1756295523252,-480.0,0.00024931,2]
[381610376,1756295523263,-518.94511112,0.00024931,2]
[381610377,1756295523272,-480.0,0.00024931,2]
[381610378,1756295523282,-480.0,0.00024931,2]
[381610379,1756295523292,-480.0,0.00024931,2]
[381610380,1756295523302,-480.0,0.00024931,2]
[381610381,1756295523312,-480.0,0.00024931,2]
[381610382,1756295523322,-824.64,0.00024931,2]
[381610383,1756295523333,-1267.55,0.00024931,2]
[381610384,1756295523344,-1138.38,0.00024931,2]
[381610385,1756295523354,-480.0,0.00024931,2]
[381610386,1756295523364,-480.0,0.00024931,2]
[381610387,1756295523374,-934.3,0.00024931,2]
[381610388,1756295523384,-495.31,0.00024931,2]
[381610389,1756295523394,-480.0,0.00024931,2]
[381610390,1756295523406,-776.73,0.00024931,2]
[381610391,1756295523416,-480.0,0.00024931,2]
[381610392,1756295523562,-480.0,0.00024931,2]
[381610393,1756295523585,-480.0,0.00024931,2]
[381610394,1756295523597,-557.28,0.00024931,2]
[381610395,1756295523609,-535.56,0.00024931,2]
[381610396,1756295523620,-200.04,0.00024931,2]
[381610397,1756295523631,-480.0,0.00024931,2]
[381610398,1756295523641,-639.28,0.00024931,2]
[381610399,1756295523651,-480.0,0.00024931,2]
[381610400,1756295523660,-480.0,0.00024931,2]
[381610401,1756295523671,-480.0,0.00024931,2]
[381610402,1756295523682,-488.32323632,0.00024931,2]
[381610403,1756295523692,-1717.2,0.00024931,2]
[381610404,1756295523703,-480.0,0.00024931,2]
[381610405,1756295523714,-2626.17,0.00024931,2]
[381610406,1756295523725,-932.54,0.00024931,2]
[381610407,1756295523735,-484.63,0.00024931,2]
[381610408,1756295523745,-717.77,0.00024931,2]
[381610409,1756295523756,-1227.94,0.00024931,2]
[381610410,1756295523767,-607.71,0.00024931,2]
[381610411,1756295523777,-480.0,0.00024931,2]
[381610412,1756295523787,-5360.08,0.00024931,2]
[381610413,1756295523798,-636.41,0.00024931,2]
[381610414,1756295523808,-480.0,0.00024931,2]
[381610415,1756295523818,-7837.73,0.00024931,2]
[381610416,1756295523830,-525.03,0.00024931,2]
[381610417,1756295523841,-784.27,0.00024931,2]
[381610418,1756295523854,-974.32,0.00024931,2]
[381610419,1756295523864,-480.0,0.00024931,2]
[381610420,1756295523874,-480.0,0.00024931,2]
[381610421,1756295523885,-2604.37,0.00024931,2]
[381610422,1756295523896,-480.0,0.00024931,2]
[381610423,1756295523907,-480.0,0.00024931,2]
[381610424,1756295523918,-480.0,0.00024931,2]
[381610425,1756295523930,-480.0,0.00024931,2]
[381610426,1756295523942,-486.44,0.00024931,2]
[381610427,1756295523952,-1424.05,0.00024931,2]
[381610428,1756295523962,-480.0,0.00024931,2]
[381610429,1756295523973,-480.0,0.00024931,2]
[381610430,1756295523985,-480.0,0.00024931,2]
[381610431,1756295523996,-850.03,0.00024931,2]
[381610432,1756295524007,-480.0,0.00024931,2]
[381610433,1756295524018,-480.0,0.00024931,2]
[381610434,1756295524029,-480.0,0.00024931,2]
[381610435,1756295524040,-480.0,0.00024931,2]
[381610436,1756295524051,-512.47,0.00024931,2]
[381610437,1756295524063,-2434.53,0.00024931,2]
[381610438,1756295524073,-1080.79,0.00024931,2]
[381610439,1756295524082,-753.46,0.00024931,2]
[381610440,1756295524093,-527.3,0.00024931,2]
[381610441,1756295524105,-1150.08,0.00024931,2]
[381610442,1756295524121,-229.43219548,0.00024931,2]
[381610443,1756295524132,-480.0,0.00024931,2]
[381610444,1756295524142,-480.0,0.00024931,2]
[381610445,1756295524153,-716.6,0.00024931,2]
[381610446,1756295524164,-480.0,0.00024931,2]
[381610447,1756295524175,-480.0,0.00024931,2]
[381610448,1756295524186,-480.0,0.00024931,2]
[381610449,1756295524196,-480.0,0.00024931,2]
[381610450,1756295524207,-799.46,0.00024931,2]
[381610451,1756295524218,-528.16,0.00024931,2]
[381610452,1756295524228,-5059.84,0.00024931,2]
[381610453,1756295524240,-480.0,0.00024931,2]
[381610454,1756295524251,-518.25,0.00024931,2]
[381610455,1756295524263,-582.84,0.00024931,2]
[381610456,1756295524275,-556.45,0.00024931,2]
[381610457,1756295524286,-1272.66,0.00024931,2]
[381610458,1756295524297,-480.0,0.00024931,2]
[381610459,1756295524309,-480.0,0.00024931,2]
[381610460,1756295524320,-684.68,0.00024931,2]
[381610461,1756295524332,-500.0,0.00024932,2]
[381610462,1756295524342,-1150.0,0.0002495,2]
[381610463,1756295524352,-2392.84664262,0.00025,3]
[381610464,1756295524362,-9234.5487863,0.00025,2]
[381610465,1756295524374,-1069.30978427,0.00025,2]
[381610466,1756295524386,-6993.40501962,0.00025,2]
[381610467,1756295524397,-2633.21213421,0.00025,2]
[381610468,1756295524407,-22607.86903134,0.00025,2]
[381610469,1756295524418,-208.78691368,0.00025,2]
[381610470,1756295524428,-360.43207352,0.00025,2]
[381610471,1756295524438,-3127.3130427,0.00025,2]
[381610472,1756295524447,-3000.0,0.00025,2]
[381610473,1756295524459,-37887.28,0.00025,7]
[381610474,1756295524469,-529.56067766,0.00025,3]
[381610475,1756295524482,-836.20810039,0.00025006,2]
[381610476,1756295524492,-5000.0,0.00025008,2]
[381610477,1756295524503,-3000.0,0.0002501,2]
[381610478,1756295524513,-3000.0,0.0002502,2]
[381610479,1756295524525,-3000.0,0.0002503,2]
[381610480,1756295524535,-3000.0,0.0002504,2]
[381610481,1756295524546,-3000.0,0.0002505,2]
[381610482,1756295524555,-3000.0,0.0002506,2]
[381610483,1756295524565,-3000.0,0.0002507,2]
[381610484,1756295524576,-1725.93494338,0.0002508,2]
[381610485,1756295524586,-3000.0,0.0002508,2]
[381610486,1756295524595,-3000.0,0.0002509,2]
[381610487,1756295524606,-460.0,0.00025095,2]
[381610488,1756295524616,-3000.0,0.000251,2]
[381610489,1756295524628,-3102.77,0.000251,7]
[381610490,1756295524638,-3000.0,0.0002511,2]
[381610491,1756295524647,-3000.0,0.0002512,2]
[381610492,1756295524657,-3000.0,0.0002513,2]
[381610493,1756295524668,-3000.0,0.0002514,2]
[381610494,1756295524680,-3000.0,0.0002515,2]
[381610495,1756295524690,-4955.147006,0.0002516,2]
[381610496,1756295524700,-973.0,0.00025184,2]